fUSD/lending_fUSD_20260319
["ID","MTS","AMOUNT","RATE_DAILY","PERIOD"]
[408563160,1773892255011,-151.0,0.000137,2]
[408563161,1773892255021,-760.206708,0.000137,2]
[408563162,1773892255031,-151.0,0.000137,2]
[408563163,1773892255040,-151.0,0.000137,2]
[408563164,1773892255050,-210.110521,0.000137,2]
[408563165,1773892255059,-316.962142,0.000137,2]
[408563166,1773892255068,-210.110521,0.000137,2]
[408563167,1773892255078,-316.962142,0.000137,2]
[408563168,1773892255087,-210.110521,0.000137,2]
[408563169,1773892255095,-2138.057356,0.000137,2]
[408563170,1773892255105,-316.962142,0.000137,2]
[408563171,1773892255114,-151.0,0.000137,2]
[408563172,1773892255124,-210.110521,0.000137,2]
[408563173,1773892255133,-151.0,0.000137,2]
[408563174,1773892255142,-2138.057356,0.000137,2]
[408563175,1773892255151,-151.0,0.000137,2]
[408563176,1773892255160,-316.962142,0.000137,2]
[408563177,1773892255170,-151.0,0.000137,2]
[408563178,1773892255179,-2138.057356,0.000137,2]
[408563179,1773892255188,-1329.857896,0.000137,2]
[408563180,1773892255198,-151.0,0.000137,2]
[408563181,1773892255207,-151.0,0.000137,2]
[408563182,1773892255216,-2138.057356,0.000137,2]
[408563183,1773892255225,-2499.640269,0.000137,2]
[408563184,1773892255235,-195.367367,0.000137,2]
[408563185,1773892255244,-1329.857896,0.000137,2]
[408563186,1773892255254,-2499.640269,0.000137,2]
[408563187,1773892255264,-151.0,0.000137,2]
[408563188,1773892255277,-1329.857896,0.000137,2]
[408563189,1773892255290,-574.989656,0.000137,2]
[408563190,1773892255304,-276.134429,0.000137,2]
[408563191,1773892255316,-2499.640269,0.000137,2]
[408563192,1773892255327,-1329.857896,0.000137,2]
[408563193,1773892255340,-363.219552,0.000137,2]
[408563194,1773892255353,-541.902195,0.000137,2]
[408563195,1773892255366,-574.989656,0.000137,2]
[408563196,1773892255379,-276.134429,0.000137,2]
[408563197,1773892255392,-2499.640269,0.000137,2]
[408563198,1773892255404,-541.902195,0.000137,2]
[408563199,1773892255415,-574.989656,0.000137,2]
[408563200,1773892255426,-276.134429,0.000137,2]
[408563201,1773892255439,-541.902195,0.000137,2]
[408563202,1773892255452,-574.989656,0.000137,2]
[408563203,1773892255464,-276.134429,0.000137,2]
[408563204,1773892255478,-727.402123,0.000137,2]
[408563205,1773892255491,-151.0,0.000137,2]
[408563206,1773892255504,-541.902195,0.000137,2]
[408563207,1773892255517,-363.219552,0.000137,2]
[408563208,1773892255532,-727.402123,0.000137,2]
[408563209,1773892255546,-363.219552,0.000137,2]
[408563210,1773892255559,-727.402123,0.000137,2]
[408563211,1773892255572,-151.0,0.000137,2]
[408563212,1773892255585,-727.402123,0.000137,2]
[408563213,1773892255597,-363.219552,0.000137,2]
[408563214,1773892255610,-1999.652305,0.000137,2]
[408563215,1773892255623,-151.0,0.000137,2]
[408563216,1773892255638,-228.405162,0.000137,2]
[408563217,1773892255651,-1999.652305,0.000137,2]
[408563218,1773892255662,-151.0,0.000137,2]
[408563219,1773892255675,-228.405162,0.000137,2]
[408563220,1773892255685,-1999.652305,0.000137,2]
[408563221,1773892255696,-200.367849,0.000137,2]
[408563222,1773892255708,-228.405162,0.000137,2]
[408563223,1773892255723,-1999.652305,0.000137,2]
[408563224,1773892255735,-2210.994346,0.000137,2]
[408563225,1773892255745,-228.405162,0.000137,2]
[408563226,1773892255757,-151.0,0.000137,2]
[408563227,1773892255769,-260.655179,0.000137,2]
[408563228,1773892255781,-2210.994346,0.000137,2]
[408563229,1773892255795,-422.278006,0.000137,2]
[408563230,1773892255807,-234.465686,0.000137,2]
[408563231,1773892255817,-260.655179,0.000137,2]
[408563232,1773892255827,-2210.994346,0.000137,2]
[408563233,1773892255840,-422.278006,0.000137,2]
[408563234,1773892255852,-1085.211323,0.000137,2]
[408563235,1773892255864,-306.258585,0.000137,2]
[408563236,1773892255876,-260.655179,0.000137,2]
[408563237,1773892255888,-2210.994346,0.000137,2]
[408563238,1773892255900,-151.0,0.000137,2]
[408563239,1773892255912,-151.0,0.000137,2]
[408563240,1773892255924,-1096.767558,0.000137,2]
[408563241,1773892255936,-1096.767558,0.000137,2]
[408563242,1773892255948,-1096.767558,0.000137,2]
[408563243,1773892255961,-151.0,0.000137,2]
[408563244,1773892255972,-1096.767558,0.000137,2]
[408563245,1773892255985,-151.0,0.000137,2]
[408563246,1773892255996,-151.0,0.000137,2]
[408563247,1773892256009,-267.283623,0.000137,2]
[408563248,1773892256021,-1697.722132,0.000137,2]
[408563249,1773892256032,-1697.722132,0.000137,2]
[408563250,1773892256044,-1697.722132,0.000137,2]
[408563251,1773892256055,-6797.824316,0.000137,2]
[408563252,1773892256067,-1697.722132,0.000137,2]
[408563253,1773892256078,-6797.824316,0.000137,2]
[408563254,1773892256090,-6797.824316,0.000137,2]
[408563255,1773892256102,-6797.824316,0.000137,2]
[408563256,1773892256114,-2420.00275,0.000137,2]
[408563257,1773892256125,-2420.00275,0.000137,2]
[408563258,1773892256137,-2420.00275,0.000137,2]
[408563259,1773892256148,-280.24666,0.000137,2]
[408563260,1773892256160,-2420.00275,0.000137,2]
[408563261,1773892256172,-280.24666,0.000137,2]
[408563262,1773892256183,-280.24666,0.000137,2]
[408563263,1773892256196,-280.24666,0.000137,2]
[408563264,1773892256209,-1111.289819,0.000137,2]
[408563265,1773892256221,-1111.289819,0.000137,2]
[408563266,1773892256233,-1111.289819,0.000137,2]
[408563267,1773892256245,-1111.289819,0.000137,2]
[408563268,1773892256256,-319.911065,0.000137,2]
[408563269,1773892256267,-319.911065,0.000137,2]
[408563270,1773892256279,-319.911065,0.000137,2]
[408563271,1773892256291,-319.911065,0.000137,2]
[408563272,1773892256302,-845.938546,0.000137,2]
[408563273,1773892256313,-1370.881087,0.000137,2]
[408563274,1773892256324,-845.938546,0.000137,2]
[408563275,1773892256336,-1370.881087,0.000137,2]
[408563276,1773892256347,-845.938546,0.000137,2]
[408563277,1773892256358,-1370.881087,0.000137,2]
[408563278,1773892256370,-845.938546,0.000137,2]
[408563279,1773892256384,-1370.881087,0.000137,2]
[408563280,1773892256396,-2199.815114,0.000137,2]
[408563281,1773892256408,-1651.820882,0.000137,2]
[408563282,1773892256419,-2199.815114,0.000137,2]
[408563283,1773892256431,-1651.820882,0.000137,2]
[408563284,1773892256442,-2199.815114,0.000137,2]
[408563285,1773892256453,-151.0,0.000137,2]
[408563286,1773892256465,-1651.820882,0.000137,2]
[408563287,1773892256476,-252.461609,0.000137,2]
[408563288,1773892256487,-2199.815114,0.000137,2]
[408563289,1773892256498,-164.155851,0.000137,2]
[408563290,1773892256509,-1651.820882,0.000137,2]
[408563291,1773892256520,-252.461609,0.000137,2]
[408563292,1773892256535,-2289.291087,0.000137,2]
[408563293,1773892256547,-252.461609,0.000137,2]
[408563294,1773892256559,-151.0,0.000137,2]
[408563295,1773892256571,-2289.291087,0.000137,2]
[408563296,1773892256583,-252.461609,0.000137,2]
[408563297,1773892256594,-151.0,0.000137,2]
[408563298,1773892256607,-151.0,0.000137,2]
[408563299,1773892256619,-151.0,0.000137,2]
[408563300,1773892256632,-2289.291087,0.000137,2]
[408563301,1773892256645,-151.0,0.000137,2]
[408563302,1773892256656,-151.0,0.000137,2]
[408563303,1773892256667,-971.057393,0.000137,2]
[408563304,1773892256680,-151.0,0.000137,2]
[408563305,1773892256693,-166.050003,0.000137,2]
[408563306,1773892256706,-2289.291087,0.000137,2]
[408563307,1773892256718,-151.0,0.000137,2]
[408563308,1773892256729,-544.326923,0.000137,2]
[408563309,1773892256741,-971.057393,0.000137,2]
[408563310,1773892256753,-544.326923,0.000137,2]
[408563311,1773892256766,-766.398952,0.000137,2]
[408563312,1773892256778,-971.057393,0.000137,2]
[408563313,1773892256790,-544.326923,0.000137,2]
[408563314,1773892256801,-766.398952,0.000137,2]
[408563315,1773892256812,-971.057393,0.000137,2]
[408563316,1773892256824,-544.326923,0.000137,2]
[408563317,1773892256836,-151.0,0.000137,2]
[408563318,1773892256848,-766.398952,0.000137,2]
[408563319,1773892256859,-868.824962,0.000137,2]
[408563320,1773892256870,-151.0,0.000137,2]
[408563321,1773892256881,-766.398952,0.000137,2]
[408563322,1773892256893,-151.0,0.000137,2]
[408563323,1773892256904,-868.824962,0.000137,2]
[408563324,1773892256915,-162.676202,0.000137,2]
[408563325,1773892256927,-151.0,0.000137,2]
[408563326,1773892256938,-151.0,0.000137,2]
[408563327,1773892256949,-868.824962,0.000137,2]
[408563328,1773892256961,-177.199848,0.000137,2]
[408563329,1773892256972,-868.824962,0.000137,2]
[408563330,1773892256984,-163.372479,0.000137,2]
[408563331,1773892256995,-151.0,0.000137,2]
[408563332,1773892257006,-151.0,0.000137,2]
[408563333,1773892257018,-190.050238,0.000137,2]
[408563334,1773892257029,-298.751774,0.000137,2]
[408563335,1773892257040,-2612.845104,0.000137,2]
[408563336,1773892257052,-190.050238,0.000137,2]
[408563337,1773892257064,-2612.845104,0.000137,2]
[408563338,1773892257075,-190.050238,0.000137,2]
[408563339,1773892257086,-2612.845104,0.000137,2]
[408563340,1773892257097,-190.050238,0.000137,2]
[408563341,1773892257109,-2612.845104,0.000137,2]
[408563342,1773892257120,-151.0,0.000137,2]
[408563343,1773892257132,-1951.875944,0.000137,2]
[408563344,1773892257143,-151.0,0.000137,2]
[408563345,1773892257155,-240.935014,0.000137,2]
[408563346,1773892257166,-1951.875944,0.000137,2]
[408563347,1773892257177,-151.0,0.000137,2]
[408563348,1773892257189,-240.935014,0.000137,2]
[408563349,1773892257201,-1951.875944,0.000137,2]
[408563350,1773892257212,-151.0,0.000137,2]
[408563351,1773892257223,-240.935014,0.000137,2]
[408563352,1773892257235,-1951.875944,0.000137,2]
[408563353,1773892257247,-240.935014,0.000137,2]
[408563354,1773892257259,-388.876166,0.000137,2]
[408563355,1773892257269,-388.876166,0.000137,2]
[408563356,1773892257281,-388.876166,0.000137,2]
[408563357,1773892257292,-388.876166,0.000137,2]
[408563358,1773892257303,-151.0,0.000137,2]
[408563359,1773892257314,-351.175175,0.000137,2]
[408563360,1773892257326,-351.175175,0.000137,2]
[408563361,1773892257337,-313.163194,0.000137,2]
[408563362,1773892257348,-351.175175,0.000137,2]
[408563363,1773892257359,-151.0,0.000137,2]
[408563364,1773892257371,-313.163194,0.000137,2]
[408563365,1773892257383,-351.175175,0.000137,2]
[408563366,1773892257395,-313.163194,0.000137,2]
[408563367,1773892257407,-151.0,0.000137,2]
[408563368,1773892257418,-151.0,0.000137,2]
[408563369,1773892257429,-1088.37609,0.000137,2]
[408563370,1773892257441,-313.163194,0.000137,2]
[408563371,1773892257452,-770.064578,0.000137,2]
[408563372,1773892257463,-151.0,0.000137,2]
[408563373,1773892257474,-1088.37609,0.000137,2]
[408563374,1773892257485,-770.064578,0.000137,2]
[408563375,1773892257496,-203.515535,0.000137,2]
[408563376,1773892257507,-1088.37609,0.000137,2]
[408563377,1773892257518,-519.224018,0.000137,2]
[408563378,1773892257533,-770.064578,0.000137,2]
[408563379,1773892257545,-1088.37609,0.000137,2]
[408563380,1773892257556,-519.224018,0.000137,2]
[408563381,1773892257568,-770.064578,0.000137,2]
[408563382,1773892257579,-3907.093503,0.000137,2]
[408563383,1773892257591,-519.224018,0.000137,2]
[408563384,1773892257604,-3907.093503,0.000137,2]
[408563385,1773892257616,-519.224018,0.000137,2]
[408563386,1773892257627,-3907.093503,0.000137,2]
[408563387,1773892257638,-202.884032,0.000137,2]
[408563388,1773892257649,-202.884032,0.000137,2]
[408563389,1773892257660,-3907.093503,0.000137,2]
[408563390,1773892257672,-151.0,0.000137,2]
[408563391,1773892257683,-202.884032,0.000137,2]
[408563392,1773892257694,-151.0,0.000137,2]
[408563393,1773892257705,-151.0,0.000137,2]
[408563394,1773892257716,-151.0,0.000137,2]
[408563395,1773892257728,-202.884032,0.000137,2]
[408563396,1773892257738,-151.0,0.000137,2]
[408563397,1773892257750,-151.0,0.000137,2]
[408563398,1773892257761,-172.340861,0.000137,2]
[408563399,1773892257772,-3178.349364,0.000137,2]
[408563400,1773892257783,-172.340861,0.000137,2]
[408563401,1773892257793,-3178.349364,0.000137,2]
[408563402,1773892257805,-151.0,0.000137,2]
[408563403,1773892257817,-172.340861,0.000137,2]
[408563404,1773892258238,-3178.349364,0.000137,2]
[408563405,1773892258256,-172.340861,0.000137,2]
[408563406,1773892258277,-3178.349364,0.000137,2]
[408563407,1773892258292,-273.968338,0.000137,2]
[408563408,1773892258303,-273.968338,0.000137,2]
[408563409,1773892258313,-273.968338,0.000137,2]
[408563410,1773892258324,-151.0,0.000137,2]
[408563411,1773892258333,-273.968338,0.000137,2]
[408563412,1773892258343,-151.0,0.000137,2]
[408563413,1773892258354,-178.05707,0.000137,2]
[408563414,1773892258364,-908.823477,0.000137,2]
[408563415,1773892258375,-151.0,0.000137,2]
[408563416,1773892258385,-178.05707,0.000137,2]
[408563417,1773892258395,-908.823477,0.000137,2]
[408563418,1773892258405,-151.0,0.000137,2]
[408563419,1773892258414,-178.05707,0.000137,2]
[408563420,1773892258426,-178.05707,0.000137,2]
[408563421,1773892258441,-908.823477,0.000137,2]
[408563422,1773892258451,-908.823477,0.000137,2]
[408563423,1773892258461,-151.0,0.000137,2]
[408563424,1773892258471,-622.980823,0.000137,2]
[408563425,1773892258481,-151.0,0.000137,2]
[408563426,1773892258492,-1349.424833,0.000137,2]
[408563427,1773892258502,-151.0,0.000137,2]
[408563428,1773892258513,-151.0,0.000137,2]
[408563429,1773892258522,-151.0,0.000137,2]
[408563430,1773892258537,-1349.424833,0.000137,2]
[408563431,1773892258551,-622.980823,0.000137,2]
[408563432,1773892258562,-151.0,0.000137,2]
[408563433,1773892258575,-151.0,0.000137,2]
[408563434,1773892258587,-151.0,0.000137,2]
[408563435,1773892258599,-622.980823,0.000137,2]
[408563436,1773892258611,-151.0,0.000137,2]
[408563437,1773892258623,-1349.424833,0.000137,2]
[408563438,1773892258633,-177.471809,0.000137,2]
[408563439,1773892258643,-622.980823,0.000137,2]
[408563440,1773892258652,-1349.424833,0.000137,2]
[408563441,1773892258665,-211.703556,0.000137,2]
[408563442,1773892258675,-177.471809,0.000137,2]
[408563443,1773892258684,-157.56932,0.000137,2]
[408563444,1773892258693,-151.0,0.000137,2]
[408563445,1773892258702,-177.471809,0.000137,2]
[408563446,1773892258712,-151.0,0.000137,2]
[408563447,1773892258722,-177.471809,0.000137,2]
[408563448,1773892258731,-191.532142,0.000137,2]
[408563449,1773892258742,-396.95349,0.000137,2]
[408563450,1773892258752,-160.789322,0.000137,2]
[408563451,1773892258761,-396.95349,0.000137,2]
[408563452,1773892258770,-151.0,0.000137,2]
[408563453,1773892258780,-166.66,0.00013727,2]
[408563454,1773892258790,-6893.11,0.00013749,2]
[408563455,1773892258804,-151.0,0.00013768,2]
[408563456,1773892258813,-151.0,0.00013768,2]
[408563457,1773892258823,-151.0,0.00013768,2]
[408563458,1773892258831,-171.059597,0.00013768,2]
[408563459,1773892258841,-171.059597,0.00013768,2]
[408563460,1773892258850,-171.059597,0.00013768,2]
[408563461,1773892258859,-171.059597,0.00013768,2]
[408563462,1773892258870,-327.582423,0.00013768,2]
[408563463,1773892258880,-327.582423,0.00013768,2]
[408563464,1773892258890,-327.582423,0.00013768,2]
[408563465,1773892258899,-327.582423,0.00013768,2]
[408563466,1773892258909,-151.0,0.00013768,2]
[408563467,1773892258919,-151.0,0.00013768,2]
[408563468,1773892258928,-151.0,0.00013768,2]
[408563469,1773892258938,-199.905465,0.00013768,2]
[408563470,1773892258947,-151.0,0.00013768,2]
[408563471,1773892258956,-151.0,0.00013768,2]
[408563472,1773892258966,-500.0,0.00013863,2]
[408563473,1773892258975,-330.0,0.00013865,2]
[408563474,1773892258984,-6200.0,0.000139,5]
[408563475,1773892258994,-154.42032794,0.00013927,2]
[408563476,1773892259006,-934.82,0.00013969,2]
[408563477,1773892259015,-150.0,0.00013973,2]
[408563478,1773892259025,-15953.48885377,0.0001399,2]
[408563479,1773892259033,-824.42530788,0.00014,2]
[408563480,1773892259043,-500.0,0.00014027,2]
[408563481,1773892259052,-151.0,0.00014035,2]
[408563482,1773892259061,-151.0,0.00014035,2]
[408563483,1773892259070,-200.0,0.0001407,2]
[408563484,1773892259079,-3292.0,0.00014092,2]
[408563485,1773892259089,-997.0,0.000141,2]
[408563486,1773892259099,-576.0,0.000141,2]
[408563487,1773892259111,-736.0,0.00014108,2]
[408563488,1773892259123,-1600.0,0.00014123,2]
[408563489,1773892259134,-1329.87930267,0.00014133,2]
[408563490,1773892259143,-16901.94582686,0.00014139,2]
[408563491,1773892259154,-166.66,0.00014139,2]
[408563492,1773892259165,-170.47,0.00014141,2]
[408563493,1773892259175,-332.25,0.00014192,2]
[408563494,1773892259186,-823.0,0.00014195,2]
[408563495,1773892259199,-504.0,0.00014199,2]
[408563496,1773892259209,-176.0,0.00014213,2]
[408563497,1773892259219,-418.92,0.00014228,2]
[408563498,1773892259229,-237.0,0.00014228,3]
[408563499,1773892259239,-512.0,0.00014228,3]
[408563500,1773892259251,-2000.0,0.00014233,2]
[408563501,1773892259261,-176.0,0.00014235,2]
[408563502,1773892259271,-934.82,0.00014243,2]
[408563503,1773892259282,-1000.0,0.00014247,2]
[408563504,1773892259292,-1000.0,0.00014247,2]
[408563505,1773892259303,-1000.0,0.00014247,2]
[408563506,1773892259313,-1000.0,0.00014247,2]
[408563507,1773892259323,-1000.0,0.00014247,2]
[408563508,1773892259333,-1000.0,0.00014247,2]
[408563509,1773892259343,-1000.0,0.00014247,2]
[408563510,1773892259354,-1000.0,0.00014247,2]
[408563511,1773892259363,-1000.0,0.00014247,2]
[408563512,1773892259372,-1000.0,0.00014247,2]
[408563513,1773892259382,-1000.0,0.00014247,2]
[408563514,1773892259391,-1000.0,0.00014247,2]
[408563515,1773892259401,-1000.0,0.00014247,2]
[408563516,1773892259412,-1000.0,0.00014247,2]
[408563517,1773892259422,-1000.0,0.00014247,2]
[408563518,1773892259433,-414.02499317,0.00014247,2]
[408563519,1773892259443,-1000.0,0.00014247,2]
[408563520,1773892259453,-1000.0,0.00014247,2]
[408563521,1773892259462,-282.85176182,0.00014247,2]
[408563522,1773892259472,-857.17487336,0.00014247,2]
[408563523,1773892259481,-1000.0,0.00014247,2]
[408563524,1773892259491,-1000.0,0.00014247,2]
[408563525,1773892259500,-1000.0,0.00014247,2]
[408563526,1773892259510,-1000.0,0.00014247,2]
[408563527,1773892259519,-1000.0,0.00014247,2]
[408563528,1773892259532,-1000.0,0.00014247,2]
[408563529,1773892259541,-1000.0,0.00014247,2]
[408563530,1773892259550,-226.28741406,0.00014247,2]
[408563531,1773892259560,-1000.0,0.00014247,2]
[408563532,1773892259570,-1000.0,0.00014247,2]
[408563533,1773892259580,-1000.0,0.00014247,2]
[408563534,1773892259589,-389.68962136,0.00014247,2]
[408563535,1773892259599,-1000.0,0.00014247,2]
[408563536,1773892259608,-1000.0,0.00014247,2]
[408563537,1773892259619,-1000.0,0.00014247,2]
[408563538,1773892259628,-1000.0,0.00014247,2]
[408563539,1773892259638,-1000.0,0.00014247,2]
[408563540,1773892259647,-1000.0,0.00014247,2]
[408563541,1773892259656,-1000.0,0.00014247,2]
[408563542,1773892259666,-1000.0,0.00014247,2]
[408563543,1773892259675,-1000.0,0.00014247,2]
[408563544,1773892259684,-1000.0,0.00014247,2]
[408563545,1773892259694,-332.25,0.00014262,2]
[408563546,1773892259703,-263.0861359,0.00014287,2]
[408563547,1773892259713,-833.0,0.000143,2]
[408563548,1773892259722,-332.25,0.00014331,2]
[408563549,1773892259731,-176.0,0.00014332,2]
[408563550,1773892259740,-2000.0,0.00014333,2]
[408563551,1773892259750,-152.0,0.00014339,3]
[408563552,1773892259759,-500.0,0.00014342,2]
[408563553,1773892259768,-500.0,0.00014342,2]
[408563554,1773892259777,-500.0,0.00014342,2]
[408563555,1773892259786,-500.0,0.00014342,2]
[408563556,1773892259795,-500.0,0.00014342,2]
[408563557,1773892259805,-500.0,0.00014342,2]
[408563558,1773892259814,-500.0,0.00014342,2]
[408563559,1773892259823,-500.0,0.00014342,2]
[408563560,1773892259832,-500.0,0.00014342,2]
[408563561,1773892259841,-500.0,0.00014342,2]
[408563562,1773892259851,-500.0,0.00014342,2]
[408563563,1773892259860,-612.39,0.00014342,2]
[408563564,1773892259869,-500.0,0.00014342,2]
[408563565,1773892259879,-500.0,0.00014342,2]
[408563566,1773892259888,-423.72,0.00014342,2]
[408563567,1773892259897,-183.7,0.00014358,2]
[408563568,1773892259907,-3134.15,0.00014384,2]
[408563569,1773892259916,-10385.50220008,0.0001439,2]
[408563570,1773892259926,-350.0,0.00014396,2]
[408563571,1773892259935,-176.0,0.00014397,2]
[408563572,1773892259945,-2402.0,0.000144,2]
[408563573,1773892259954,-1153.0,0.000144,2]
[408563574,1773892259964,-179.0,0.000144,2]
[408563575,1773892259974,-3854.29670893,0.00014411,2]
[408563576,1773892259983,-800.0,0.00014413,2]
[408563577,1773892259992,-800.0,0.00014413,2]
[408563578,1773892260002,-800.0,0.00014413,2]
[408563579,1773892260012,-800.0,0.00014413,2]
[408563580,1773892260023,-800.0,0.00014413,2]
[408563581,1773892260033,-800.0,0.00014413,2]
[408563582,1773892260042,-800.0,0.00014413,2]
[408563583,1773892260051,-800.0,0.00014413,2]
[408563584,1773892260061,-800.0,0.00014413,2]
[408563585,1773892260070,-668.0,0.00014413,2]
[408563586,1773892260080,-176.0,0.00014428,2]
[408563587,1773892260089,-2000.0,0.00014433,2]
[408563588,1773892260099,-183.7,0.0001447,2]
[408563589,1773892260109,-150.0,0.00014475,2]
[408563590,1773892260119,-150.0,0.00014475,2]
[408563591,1773892260129,-150.0,0.00014475,2]
[408563592,1773892260139,-150.0,0.00014475,2]
[408563593,1773892260149,-150.0,0.00014475,2]
[408563594,1773892260158,-168.0,0.00014475,2]
[408563595,1773892260168,-152.0,0.00014487,4]
[408563596,1773892260179,-2000.0,0.00014512,2]
[408563597,1773892260188,-934.82,0.00014517,2]
[408563598,1773892260199,-2000.0,0.00014533,2]
[408563599,1773892260209,-176.0,0.00014549,2]
[408563600,1773892260218,-166.66,0.00014552,2]
[408563601,1773892260227,-350.0,0.00014578,3]
[408563602,1773892260237,-183.7,0.00014582,2]
[408563603,1773892260247,-176.0,0.00014613,2]
[408563604,1773892260256,-205.51519238,0.00014618,2]
[408563605,1773892260266,-176.0,0.00014626,2]
[408563606,1773892260275,-150.0,0.00014628,2]
[408563607,1773892260285,-150.0,0.00014628,2]
[408563608,1773892260294,-150.0,0.00014628,2]
[408563609,1773892260304,-150.0,0.00014628,2]
[408563610,1773892260313,-150.0,0.00014628,2]
[408563611,1773892260323,-150.0,0.00014628,2]
[408563612,1773892260332,-197.0,0.00014628,2]
[408563613,1773892260343,-2000.0,0.00014633,2]
[408563614,1773892260353,-152.0,0.00014635,5]
[408563615,1773892260363,-151.0,0.00014694,2]
[408563616,1773892260372,-1551.72714537,0.00014714,2]
[408563617,1773892260381,-225.96877254,0.00014714,2]
[408563618,1773892260391,-151.09920728,0.00014714,2]
[408563619,1773892260401,-237.75233873,0.00014714,2]
[408563620,1773892260412,-2402.0,0.0001472,2]
[408563621,1773892260422,-1418.0,0.0001472,2]
[408563622,1773892260432,-2402.0,0.0001472,2]
[408563623,1773892260442,-2000.0,0.00014733,2]
[408563624,1773892260452,-170.47,0.00014756,2]
[408563625,1773892260461,-152.0,0.00014783,6]
[408563626,1773892260470,-5746.0,0.00014784,2]
[408563627,1773892260480,-934.82,0.00014791,2]
[408563628,1773892260489,-1000.0,0.00014794,2]
[408563629,1773892260499,-1700.0,0.00014794,2]
[408563630,1773892260508,-2500.0,0.00014794,2]
[408563631,1773892260518,-301.7381184,0.00014795,2]
[408563632,1773892260529,-1500.0,0.00014795,2]
[408563633,1773892260540,-1500.0,0.00014795,2]
[408563634,1773892260550,-1500.0,0.00014795,2]
[408563635,1773892260559,-1455.72571989,0.00014795,2]
[408563636,1773892260570,-219.49027864,0.00014795,2]
[408563637,1773892260579,-1500.0,0.00014795,2]
[408563638,1773892260588,-1500.0,0.00014795,2]
[408563639,1773892260598,-1500.0,0.00014795,2]
[408563640,1773892260609,-1047.2319377,0.00014795,2]
[408563641,1773892260618,-1500.0,0.00014795,2]
[408563642,1773892260627,-1500.0,0.00014795,2]
[408563643,1773892260637,-1500.0,0.00014795,2]
[408563644,1773892260647,-1500.0,0.00014795,2]
[408563645,1773892260656,-846.68886321,0.00014795,2]
[408563646,1773892260666,-1500.0,0.00014795,2]
[408563647,1773892260676,-1500.0,0.00014795,2]
[408563648,1773892260685,-1500.0,0.00014795,2]
[408563649,1773892260695,-1005.49650087,0.00014795,2]
[408563650,1773892260704,-1500.0,0.00014795,2]
[408563651,1773892260713,-1500.0,0.00014795,2]
[408563652,1773892260722,-1500.0,0.00014795,2]
[408563653,1773892260732,-1500.0,0.00014795,2]
[408563654,1773892260741,-1500.0,0.00014795,2]
[408563655,1773892260751,-1500.0,0.00014795,2]
[408563656,1773892260760,-1500.0,0.00014795,2]
[408563657,1773892260769,-1176.85294544,0.00014795,2]
[408563658,1773892260779,-1500.0,0.00014795,2]
[408563659,1773892260789,-1500.0,0.00014795,2]